fUSD/lending_fUSD_20260410
["ID","MTS","AMOUNT","RATE_DAILY","PERIOD"]
[420227711,1775815832371,-677.60719505,0.00015333,2]
[420227712,1775815832385,-150.0,0.00015352,2]
[420227713,1775815832411,-150.0,0.00015352,2]
[420227714,1775815832419,-209.41061782,0.00015352,2]
[420227715,1775815832442,-150.0,0.00015352,2]
[420227716,1775815832457,-224.88894205,0.00015352,2]
[420227717,1775815832467,-150.0,0.00015352,2]
[420227718,1775815832488,-8259.964067,0.00015361,2]
[420227719,1775815832503,-427.0239,0.0001537,2]
[420227720,1775815832514,-6300.0,0.000154,5]
[420227721,1775815832537,-1400.0,0.000154,5]
[420227722,1775815832546,-900.0,0.000154,5]
[420227723,1775815832562,-1602.0,0.00015406,2]
[420227724,1775815832576,-7900.0,0.000155,5]
[420227725,1775815832589,-1700.0,0.000155,5]
[420227726,1775815832605,-1100.0,0.000155,5]
[420227727,1775815832619,-174.4611,0.000155,2]
[420227728,1775815832632,-677.60719505,0.00015522,2]
[420227729,1775815832642,-168.0,0.0001555,2]
[420227730,1775815832656,-2500.0,0.0001555,2]
[420227731,1775815832671,-300.0,0.00015558,2]
[420227732,1775815832686,-3395.348,0.00015564,2]
[420227733,1775815832703,-6023.0,0.00015564,2]
[420227734,1775815832714,-1500.0,0.000156,5]
[420227735,1775815832733,-300.0,0.000156,5]
[420227736,1775815832747,-200.0,0.000156,5]
[420227737,1775815832759,-1405.36,0.0001565,2]
[420227738,1775815832781,-167.421,0.0001565,2]
[420227739,1775815832791,-306.47495409,0.0001568,2]
[420227740,1775815832805,-1500.0,0.000157,5]
[420227741,1775815832816,-300.0,0.000157,5]
[420227742,1775815832831,-200.0,0.000157,5]
[420227743,1775815832849,-677.60719505,0.00015711,2]
[420227744,1775815832860,-1000.0,0.00015743,2]
[420227745,1775815832879,-622.0,0.0001575,2]
[420227746,1775815832893,-1347.0,0.0001575,2]
[420227747,1775815832906,-510.0,0.00015776,4]
[420227748,1775815832924,-1500.0,0.000158,5]
[420227749,1775815832937,-300.0,0.000158,5]
[420227750,1775815832954,-200.0,0.000158,5]
[420227751,1775815832971,-168.0,0.00015864,2]
[420227752,1775815832986,-1600.0,0.00015872,2]
[420227753,1775815833016,-500.0,0.00015872,2]
[420227754,1775815833030,-2000.0,0.0001589,2]
[420227756,1775815833056,-677.60719505,0.000159,2]
[420227758,1775815833066,-5000.0,0.000159,2]
[420227760,1775815833076,-306.0,0.000159,2]
[420227762,1775815833088,-11058.7363864,0.000159,2]
[420227764,1775815833106,-1500.0,0.000159,5]
[420227766,1775815833117,-300.0,0.000159,5]
[420227768,1775815833131,-313.0,0.000159,2]
[420227770,1775815833147,-814.30874484,0.000159,2]
[420227772,1775815833157,-200.0,0.000159,5]
[420227773,1775815833167,-6811.5164556,0.000159,2]
[420227774,1775815833177,-1000.0,0.00015915,2]
[420227775,1775815833195,-500.0,0.00015973,2]
[420227776,1775815833205,-154.31779089,0.00015984,2]
[420227777,1775815833215,-1061.4887139,0.00015986,2]
[420227778,1775815833228,-150.0,0.00015999,2]
[420227779,1775815833244,-155.0,0.00015999,2]
[420227780,1775815833255,-408.89445567,0.00015999,2]
[420227781,1775815833265,-500.0,0.00015999,2]
[420227782,1775815833287,-630.52420949,0.00015999,2]
[420227783,1775815833302,-500.0,0.00015999,2]
[420227784,1775815833322,-191.13654985,0.00015999,2]
[420227785,1775815833345,-178.19802918,0.00015999,2]
[420227786,1775815833355,-20647.75055252,0.00016,2]
[420227787,1775815833381,-9853.62261366,0.00016,2]
[420227788,1775815833393,-19216.54591626,0.00016,2]
[420227789,1775815833412,-250.7070206,0.00016,2]
[420227790,1775815833431,-621.94024213,0.00016,2]
[420227791,1775815833443,-8852.14082767,0.00016,2]
[420227792,1775815833469,-3757.29980986,0.00016,2]
[420227793,1775815833480,-1305.0,0.00016,2]
[420227795,1775815837954,-204.31663606,0.0001568,2]
[420227796,1775815838021,-151.39341894,0.00016,2]
[420227797,1775815838141,-772.09787082,0.00016,2]
[420227798,1775815838158,-405.06367302,0.00016,2]
[420227824,1775815840162,-331.79488458,0.00016,2]
[420227827,1775815840175,-9529.48997746,0.00016,2]
[420227829,1775815840195,-301.92197159,0.00016,2]
[420227830,1775815840477,-204.31663606,0.0001568,2]
[420227831,1775815840486,-28767.80391034,0.00016,2]
[420227833,1775815841392,-2471.0,0.00015564,2]
[420227834,1775815841401,-5670.74443144,0.00016,2]
[420227835,1775815841419,-7954.2,0.00016,2]
[420227836,1775815841431,-522.9232407,0.00016,2]
[420227837,1775815841488,-2851.43843768,0.00016,2]
[420227838,1775815841504,-509.65562623,0.00016,2]
[420227843,1775815843089,-1107.47498678,0.0001568,2]
[420227844,1775815843135,-626.12063528,0.000159,2]
[420227845,1775815843326,-4373.87936472,0.000159,2]
[420227846,1775815843338,-5207.09757641,0.00016,2]
[420227856,1775815845833,-1392.39409544,0.00015558,2]
[420227857,1775815845843,-580.80436506,0.00016,2]
[420227858,1775815846023,-2370.58987861,0.00016,2]
[420227859,1775815846106,-4711.58367638,0.00016,2]
[420227860,1775815846147,-43456.33965862,0.00016,2]
[420227861,1775815846161,-6652.6257094,0.00016,2]
[420227862,1775815846262,-294.11282895,0.00016,2]
[420227863,1775815846284,-232883.67388306,0.00016,2]
[420227864,1775815846297,-9246.76990359,0.00016,2]
[420227900,1775816188585,-336.41023098,0.00011,5]
[420227901,1775816198116,-5000.01,0.00011,5]
[420227902,1775816200345,-196.57976902,0.00011,5]
[420227903,1775816200396,-250.0,0.00011299,2]
[420227904,1775816200503,-1200.0,0.00011329,2]
[420227905,1775816200551,-300.0,0.00011329,2]
[420227906,1775816200604,-300.0,0.00011329,2]
[420227907,1775816200743,-506.85046196,0.00011329,2]
[420227910,1775816660155,-164.2718,0.000121,2]
[420227911,1775816660194,-286.0,0.000121,2]
[420227912,1775816660230,-250.0,0.00012169,2]
[420227913,1775816660261,-989.40714987,0.00012238,2]
[420227914,1775816660346,-1620.65210026,0.00012238,2]
[420227915,1775816663486,-271.632087,0.00012298,2]
[420227916,1775816663536,-250.0,0.00012312,2]
[420227917,1775816663581,-1200.0,0.00012461,2]
[420227918,1775816663643,-300.0,0.00012461,2]
[420227919,1775816663860,-956.745826,0.00012462,2]
[420227920,1775816665901,-1444.9712026,0.00012462,2]
[420227921,1775816665948,-150.0,0.00012828,2]
[420227922,1775816666013,-1810.0675948,0.00012873,2]
[420227940,1775817031962,-534.06656813,0.000128,3]
[420227941,1775817031977,-1879.87546922,0.000128,3]
[420227942,1775817031998,-300.0,0.00012901,2]
[420227943,1775817032011,-694.0,0.00012901,2]
[420227944,1775817032023,-1120.8037051,0.00012902,2]
[420227945,1775817032061,-390.37271931,0.00012902,2]
[420227946,1775817032082,-1230.22,0.00012902,2]
[420227947,1775817032119,-7211.0,0.00012902,2]
[420227948,1775817032133,-2189.69437254,0.00012902,2]
[420227949,1775817032165,-2171.79258427,0.00012902,2]
[420227950,1775817032192,-74.63500326,0.00012902,2]
[420227951,1775817032211,-150.0,0.0001291,2]
[420227952,1775817032231,-307.64644885,0.00012911,2]
[420227953,1775817032244,-500.0,0.00012911,2]
[420227954,1775817032271,-500.0,0.00012911,2]
[420227955,1775817032283,-500.0,0.00012911,2]
[420227956,1775817032325,-500.0,0.00012911,2]
[420227957,1775817032340,-500.0,0.00012911,2]
[420227958,1775817032351,-500.0,0.00012911,2]
[420227959,1775817032366,-500.0,0.00012911,2]
[420227960,1775817032381,-500.0,0.00012911,2]
[420227961,1775817032394,-500.0,0.00012911,2]
[420227962,1775817032404,-500.0,0.00012911,2]
[420227963,1775817032415,-500.0,0.00012911,2]
[420227964,1775817032424,-500.0,0.00012911,2]
[420227965,1775817032435,-500.0,0.00012911,2]
[420227966,1775817032444,-500.0,0.00012911,2]
[420227967,1775817032453,-500.0,0.00012911,2]
[420227969,1775817032464,-500.0,0.00012911,2]
[420227970,1775817032473,-500.0,0.00012911,2]
[420227971,1775817032485,-500.0,0.00012911,2]
[420227972,1775817032494,-500.0,0.00012911,2]
[420227973,1775817032505,-500.0,0.00012911,2]
[420227974,1775817032515,-500.0,0.00012911,2]
[420227975,1775817032525,-500.0,0.00012911,2]
[420227976,1775817032534,-500.0,0.00012911,2]
[420227977,1775817032543,-210.65034572,0.00012911,2]
[420227978,1775817032555,-289.34965428,0.00012911,2]
[420227979,1775817032565,-47.02973572,0.00012911,2]
[420227980,1775817032576,-452.97026428,0.00012911,2]
[420227982,1775817032585,-500.0,0.00012911,2]
[420227984,1775817032596,-500.0,0.00012911,2]
[420227985,1775817032605,-500.0,0.00012911,2]
[420227986,1775817032615,-500.0,0.00012911,2]
[420227987,1775817032624,-500.0,0.00012911,2]
[420227988,1775817032633,-500.11526413,0.00012911,2]
[420227989,1775817032642,-500.0,0.00012911,2]
[420227990,1775817032651,-500.0,0.00012911,2]
[420227991,1775817032663,-500.0,0.00012911,2]
[420227992,1775817032672,-500.0,0.00012911,2]
[420227993,1775817032682,-146.52057966,0.00012911,2]
[420227994,1775817032704,-353.47942034,0.00012911,2]
[420227995,1775817032713,-146.52057966,0.00012911,2]
[420227996,1775817032725,-353.47942034,0.00012911,2]
[420227997,1775817032735,-500.0,0.00012911,2]
[420227998,1775817032748,-500.0,0.00012911,2]
[420227999,1775817032757,-500.0,0.00012911,2]
[420228000,1775817032769,-500.0,0.00012911,2]
[420228001,1775817032778,-500.0,0.00012911,2]
[420228002,1775817032794,-500.0,0.00012911,2]
[420228003,1775817032804,-500.0,0.00012911,2]
[420228004,1775817032818,-500.0,0.00012911,2]
[420228005,1775817032833,-500.0,0.00012911,2]
[420228006,1775817032847,-500.0,0.00012911,2]
[420228007,1775817032856,-500.0,0.00012911,2]
[420228008,1775817032868,-500.0,0.00012911,2]
[420228009,1775817032886,-500.0,0.00012911,2]
[420228010,1775817032898,-500.0,0.00012911,2]
[420228011,1775817032912,-500.0,0.00012911,2]
[420228012,1775817032927,-500.0,0.00012911,2]
[420228013,1775817032938,-500.0,0.00012911,2]
[420228014,1775817032951,-500.0,0.00012911,2]
[420228015,1775817032970,-192.94956598,0.00012911,2]
[420228016,1775817032981,-500.0,0.00012911,2]
[420228017,1775817032993,-500.0,0.00012911,2]
[420228018,1775817033014,-500.0,0.00012911,2]
[420228019,1775817033027,-500.0,0.00012911,2]
[420228020,1775817033043,-500.0,0.00012911,2]
[420228021,1775817033072,-600.57969789,0.00012911,2]
[420228022,1775817033089,-1789.16604306,0.00012912,2]
[420228023,1775817033109,-169.52755071,0.00012912,2]
[420228024,1775817033133,-2227.6357557,0.00012912,2]
[420228025,1775817033163,-7607.88650326,0.00012912,2]
[420228026,1775817033210,-35135.51527571,0.00012912,2]
[420228027,1775817033246,-335.31456548,0.00012912,2]
[420228028,1775817033274,-1065.2223718,0.00012912,2]
[420228029,1775817033305,-4438.00677323,0.00012912,2]
[420228030,1775817033320,-1623.11679656,0.00012912,2]
[420228037,1775817038174,-308.06716615,0.00012912,2]
[420228038,1775817038258,-347.24338275,0.00012912,2]
[420228039,1775817038271,-401.616215,0.00012912,2]
[420228040,1775817038319,-452.72668511,0.00012912,2]
[420228041,1775817038332,-8539.3814926,0.00012912,2]
[420228042,1775817038348,-1558.21312707,0.00012912,2]
[420228043,1775817038361,-2097.93,0.00012912,2]
[420228044,1775817038417,-73846.88944458,0.00012912,2]
[420228087,1775817041405,-25390.74730203,0.00012912,2]
[420228088,1775817041428,-279.7878308,0.00012912,2]
[420228089,1775817041472,-943.78799,0.00012912,2]
[420228090,1775817041489,-34575.07031925,0.00012912,2]
[420228091,1775817041543,-461.38777926,0.00012912,2]
[420228108,1775817043137,-2481.34262677,0.00012912,2]
[420228109,1775817043150,-385.35044793,0.00012912,2]
[420228114,1775817046434,-3985.4745567,0.00012912,2]
[420228115,1775817046484,-2178.4481999,0.00012912,2]
[420228116,1775817046513,-525.568331,0.00012912,2]
[420228117,1775817046564,-92943.14801624,0.00012912,2]
[420228118,1775817046637,-5102.74588832,0.00012912,2]
[420228120,1775817046666,-53949.6330125,0.00012912,2]
[420228121,1775817046691,-500.0,0.00012973,2]
[420228122,1775817046707,-150.0,0.00013012,2]
[420228123,1775817046734,-151.0,0.00013044,2]
[420228125,1775817046744,-515.0,0.000131,2]
[420228126,1775817046764,-1789.166043,0.00013244,2]
[420228127,1775817046776,-2227.63575564,0.00013244,2]
[420228128,1775817046786,-827.08,0.00013313,2]
[420228129,1775817046795,-169.52755065,0.00013339,2]
[420228130,1775817046810,-500.0,0.00013507,2]
[420228131,1775817046820,-1789.166043,0.00013576,2]
[420228132,1775817046829,-2227.63575564,0.00013576,2]
[420228133,1775817046839,-150.0,0.000136,2]
[420228134,1775817046860,-299.925,0.00013698,2]
[420228135,1775817046869,-169.52755065,0.00013766,2]
[420228136,1775817046878,-500.0,0.00013781,2]
[420228137,1775817046890,-200.0,0.00013889,2]
[420228138,1775817046902,-1789.166043,0.00013908,2]
[420228139,1775817046911,-2227.63575564,0.00013908,2]
[420228140,1775817046921,-3670.92,0.00013991,2]
[420228141,1775817046931,-255.0,0.00014008,2]
[420228142,1775817046940,-2000.0,0.00014033,2]
[420228143,1775817046950,-300.0,0.0001408,2]
[420228144,1775817046960,-300.0,0.0001408,2]
[420228145,1775817046970,-169.52755065,0.00014193,2]
[420228146,1775817046979,-1789.166043,0.0001424,2]
[420228147,1775817046989,-1789.166043,0.00014572,2]
[420228148,1775817046998,-169.52755065,0.00014619,2]
[420228149,1775817047007,-362.58,0.000147,2]
[420228150,1775817047016,-986.22,0.00014775,2]
[420228151,1775817047026,-174.5056,0.000148,2]
[420228152,1775817047036,-1648.04033113,0.00014904,2]
[420228153,1775817047093,-141.12571187,0.00014904,2]
[420228154,1775817047102,-227.34617303,0.00015,2]
[420228155,1775817047115,-561.38603697,0.00015,2]
[420228156,1775817047124,-473.69785618,0.00015049,2]
[420228157,1775817047137,-512.52214382,0.00015049,2]
[420228158,1775817047147,-200.0,0.000151,5]
[420228159,1775817047157,-150.0,0.00015195,2]
[420228160,1775817047167,-500.0,0.000152,5]
[420228161,1775817047177,-1185.78869229,0.00015236,2]
[420228162,1775817047189,-603.37735071,0.00015236,2]
[420228163,1775817047199,-299.11968399,0.000153,5]
[420228167,1775817131653,-5000.01,0.000105,5]
[420228170,1775817134493,-532.99,0.000105,5]
[420228171,1775817134537,-777.85453679,0.00012241,2]
[420228172,1775817134615,-2378.32092642,0.00012241,2]
[420228173,1775817137470,-286.0,0.00012241,2]
[420228174,1775817137516,-271.632087,0.00012479,2]
[420228175,1775817137563,-250.0,0.00012646,2]
[420228176,1775817137723,-3384.745826,0.00012812,2]
[420228177,1775817248898,954.070742,7.945e-05,2]
[420228178,1775817306996,162.0,7.945e-05,3]
[420228179,1775817307089,378.0,7.945e-05,3]
[420228180,1775817367275,359.0,7.945e-05,3]
[420228181,1775817426749,341.0,7.945e-05,3]
[420228182,1775817485362,324.0,7.945e-05,3]
[420228183,1775817605519,308.0,7.945e-05,3]
[420228184,1775817606117,162.0,7.945e-05,3]
[420228185,1775817727272,293.0,7.945e-05,3]
[420228186,1775817788449,278.0,7.945e-05,3]
[420228187,1775817853702,264.0,7.945e-05,3]
[420228188,1775817910508,251.0,7.945e-05,3]
[420228189,1775817910587,162.0,7.945e-05,3]
[420228190,1775817930698,-251.0,9.975e-05,3]
[420228191,1775817930725,-250.0,0.00010473,2]
[420228192,1775817930751,-300.0,0.00010971,2]
[420228193,1775817930781,-199.0,0.00010971,2]
[420228194,1775817931614,-1000.0,0.00010971,2]
[420228195,1775817931957,-1.0,0.00010971,2]
[420228196,1775817931982,-300.0,0.00010971,2]
[420228197,1775817932023,-699.0,0.00010972,2]
[420228198,1775817932451,-1000.0,0.00010972,2]
[420228199,1775817932871,-1000.0,0.00010972,2]
[420228200,1775817933109,-1000.0,0.00010972,2]
[420228201,1775817933465,-466.90747353,0.00010972,2]
[420228202,1775817933493,-533.09252647,0.00010972,2]
[420228203,1775817933824,-66.90747353,0.00010972,2]
[420228204,1775817933855,-250.0,0.00010972,2]
[420228205,1775817933891,-250.0,0.00010972,2]
[420228206,1775817933926,-164.2718,0.00010972,2]
[420228207,1775817967590,330.0,7.945e-05,3]
[420228208,1775818026834,586.0,7.945e-05,3]
[420228209,1775818039267,-586.0,9.975e-05,3]
[420228210,1775818085301,527.0,7.945e-05,3]
[420228211,1775818147239,501.0,7.945e-05,3]
[420228212,1775818206006,476.0,7.945e-05,3]
[420228213,1775818208860,159.0,7.945e-05,3]
[420228214,1775818232347,-476.0,9.975e-05,3]
[420228215,1775818232356,-62.47913695,0.00012004,3]
[420228216,1775818232377,-410.55372032,0.00012004,3]
[420228217,1775818232390,-2.96714273,0.00012004,3]
[420228218,1775818232400,-297.0337579,0.00012711,2]
[420228250,1775818233506,-902.9662421,0.00012711,2]
[420228251,1775818233519,-300.0,0.00012711,2]
[420228252,1775818233530,-506.0,0.00012711,2]
[420228253,1775818233555,-789.74132913,0.00012712,2]
[420228254,1775818233580,-18158.61043862,0.00012712,2]
[420228255,1775818233629,-2012.78354579,0.00012712,2]
[420228256,1775818233641,-494.05,0.00012712,2]
[420228257,1775818233674,-16558.90418646,0.00012712,2]
[420228258,1775818233684,-356.4231,0.00012712,2]
[420228259,1775818233701,-200.0,0.00012805,2]
[420228260,1775818233712,-151.0,0.00012809,2]
[420228261,1775818233721,-150.0,0.00012811,2]
[420228262,1775818233731,-29267.24624557,0.00012812,2]
[420228263,1775818233804,-151.0,0.00012878,2]
[420228264,1775818233824,-1266.78653589,0.00012892,2]
[420228265,1775818233837,-250.0,0.00013,2]
[420228266,1775818233849,-510.0,0.000131,2]
[420228267,1775818233862,-1266.78653588,0.00013226,2]
[420228268,1775818233874,-3204.3063825,0.00013412,2]
[420228269,1775818233883,-1266.78653588,0.0001356,2]
[420228270,1775818233894,-500.0,0.00013699,2]
[420228271,1775818233905,-800.0,0.00013699,2]
[420228272,1775818233918,-1000.0,0.00013699,2]
[420228273,1775818233928,-150.0,0.000137,2]
[420228274,1775818233944,-216.0,0.00013868,2]
[420228275,1775818233954,-1266.78653588,0.00013895,2]
[420228276,1775818233967,-155.82,0.00013985,2]
[420228277,1775818233985,-476.0,0.00014034,3]
[420228278,1775818233995,-290.06,0.00014034,2]
[420228279,1775818234008,-952.86,0.00014036,2]
[420228280,1775818234021,-247.95,0.00014038,2]
[420228281,1775818234030,-3240.0,0.00014057,2]
[420228282,1775818234043,-494.37,0.00014141,2]
[420228283,1775818234054,-1500.0,0.00014221,2]
[420228284,1775818234069,-1266.78653588,0.00014229,2]
[420228285,1775818234081,-200.0,0.00014451,2]
[420228286,1775818234095,-1266.78653588,0.00014563,2]
[420228287,1775818234107,-247.95,0.0001474,2]
[420228288,1775818234116,-1266.78653588,0.00014897,2]
[420228289,1775818234130,-174.4094,0.000149,2]
[420228290,1775818234155,-300.0,0.00015,2]
[420228291,1775818234164,-400.0,0.000151,5]
[420228292,1775818234173,-800.0,0.000152,5]
[420228293,1775818234191,-1674.0,0.00015228,2]
[420228294,1775818234202,-1266.78653588,0.00015232,2]
[420228295,1775818234211,-1300.0,0.000153,5]
[420228296,1775818234226,-1700.0,0.000154,5]
[420228297,1775818234240,-247.95,0.00015442,2]
[420228298,1775818234250,-827.08,0.00015476,2]
[420228299,1775818234260,-586.26375513,0.00015479,2]
[420228300,1775818234279,-159.5330209,0.0001549,2]
[420228301,1775818234294,-2200.0,0.000155,5]
[420228302,1775818234304,-3785.41,0.00015507,2]
[420228303,1775818234314,-1266.78653588,0.00015566,2]
[420228304,1775818234324,-293.08351616,0.00015573,2]
[420228305,1775818234339,-1388.06,0.000156,2]
[420228306,1775818234348,-167.4222637,0.000156,2]
[420228307,1775818234358,-400.0,0.000156,5]
[420228308,1775818234368,-293.08351616,0.0001562,2]
[420228309,1775818234381,-293.08351616,0.00015666,2]
[420228310,1775818234390,-510.0,0.00015673,4]
[420228311,1775818234400,-1047.0,0.00015673,2]
[420228312,1775818234410,-1347.0,0.00015673,2]
[420228313,1775818234419,-1218.0,0.00015673,2]
[420228314,1775818234433,-926.0,0.00015673,2]
[420228315,1775818234443,-1264.0,0.00015673,2]
[420228316,1775818234455,-6023.0,0.00015673,2]
[420228317,1775818234467,-2471.0,0.00015673,2]
[420228318,1775818234492,-160.0,0.0001568,7]
[420228319,1775818234502,-621.98838,0.0001568,7]
[420228320,1775818234511,-1083.976761,0.0001568,7]
[420228321,1775818234523,-928.0,0.000157,2]
[420228322,1775818234537,-400.0,0.000157,5]
[420228323,1775818234548,-313.0,0.000157,2]
[420228324,1775818234557,-293.08351616,0.00015713,2]
[420228325,1775818234575,-155.82,0.00015733,2]
[420228326,1775818234585,-293.08351616,0.0001576,2]
[420228327,1775818234596,-2000.0,0.00015787,2]
[420228328,1775818234612,-160.0,0.00015787,2]
[420228329,1775818234621,-427.829081,0.00015787,2]
[420228330,1775818234630,-695.658162,0.00015787,2]
[420228331,1775818234647,-155.59115507,0.00015799,2]
[420228332,1775818234660,-500.0,0.00015799,2]
[420228333,1775818234680,-500.0,0.00015799,2]
[420228334,1775818234691,-500.0,0.00015799,2]
[420228335,1775818234701,-500.0,0.00015799,2]
[420228336,1775818234710,-500.0,0.00015799,2]
[420228337,1775818234750,-500.0,0.00015799,2]
[420228338,1775818234762,-500.0,0.00015799,2]
[420228339,1775818234777,-500.0,0.00015799,2]
[420228340,1775818234791,-500.0,0.00015799,2]
[420228341,1775818234807,-500.0,0.00015799,2]
[420228342,1775818234822,-500.0,0.00015799,2]
[420228343,1775818234833,-48922.49055684,0.000158,2]
[420228344,1775818234847,-400.0,0.000158,5]
[420228345,1775818234861,-16022.2277761,0.00015805,2]
[420228346,1775818234873,-293.08351616,0.00015807,2]
[420228347,1775818234886,-293.08351616,0.00015853,2]
[420228348,1775818234897,-2995.3919114,0.00015873,2]
[420228349,1775818234906,-2995.39191134,0.00015876,2]
[420228350,1775818234918,-160.0,0.00015876,7]
[420228351,1775818234930,-190.574609,0.00015876,7]
[420228352,1775818234940,-221.149218,0.00015876,7]
[420228353,1775818234955,-160.0,0.00015876,7]
[420228354,1775818234964,-328.978753,0.00015876,7]
[420228355,1775818234973,-497.957507,0.00015876,7]
[420228356,1775818234983,-2995.39191134,0.00015879,2]
[420228357,1775818234993,-2995.39191134,0.00015882,2]
[420228358,1775818235002,-2995.39191134,0.00015885,2]
[420228359,1775818235011,-2995.39191134,0.00015888,2]
[420228360,1775818235020,-2995.39191134,0.00015891,2]
[420228361,1775818235030,-2995.39191134,0.00015894,2]
[420228362,1775818235040,-3785.41,0.00015895,2]
[420228363,1775818235050,-2995.39191134,0.00015897,2]
[420228364,1775818235059,-5000.0,0.000159,2]
[420228365,1775818235070,-1266.78653588,0.000159,2]
[420228366,1775818235079,-2995.39191134,0.000159,2]
[420228367,1775818235089,-400.0,0.000159,5]
[420228368,1775818235098,-293.08351616,0.000159,2]
[420228369,1775818235107,-4171.28658585,0.000159,2]
[420228370,1775818235116,-715.89742388,0.000159,2]
[420228371,1775818235125,-183.644624,0.00015964,7]
[420228372,1775818235137,-20000.0,0.00015973,2]
[420228373,1775818235148,-531.1,0.00015973,2]
[420228374,1775818235157,-280.0474868,0.00015984,2]
[420228375,1775818235172,-40577.17382425,0.0001599,2]
[420228376,1775818235182,-155.0,0.00015999,2]
[420228377,1775818235193,-150.0,0.00015999,2]
[420228378,1775818235202,-145723.67645884,0.00016,2]
[420228379,1775818235219,-66435.1947162,0.00016,2]
[420228380,1775818235232,-32884.10747695,0.00016,2]
[420228382,1775818238515,-21308.88708488,0.00012712,2]
[420228406,1775818244467,-18822.56781405,0.00012712,2]
[420228407,1775818244543,-5553.02837389,0.00012712,2]
[420228409,1775818246346,-565.6000001,0.00012712,2]
[420228410,1775818246370,-4868.7298457,0.00012712,2]
[420228411,1775818246385,-1261.267356,0.00012712,2]
[420228412,1775818246402,-11483.38141545,0.00012712,2]
[420228414,1775818478262,1881.96,7.349e-05,2]
[420228415,1775818478471,1881.96,7.736e-05,2]
[420228416,1775818478724,1236.09,8.123e-05,2]
[420228417,1775818478763,645.87,8.123e-05,2]
[420228418,1775818478911,1881.96,8.51e-05,2]
[420228419,1775818479091,1881.96,8.897e-05,2]
[420228420,1775818510880,380.0,8.897e-05,3]
[420228421,1775818510949,159.0,8.897e-05,3]
[420228422,1775818566015,361.0,8.897e-05,3]
[420228423,1775818625030,343.0,8.897e-05,3]
[420228424,1775818686014,326.0,8.897e-05,3]
[420228425,1775818747861,310.0,8.897e-05,3]
[420228426,1775818804463,-1000.0,9.284e-05,2]
[420228427,1775818806137,160.0,8.897e-05,3]
[420228428,1775818806186,-881.96,9.284e-05,2]
[420228429,1775818806224,-118.04,9.67e-05,2]
[420228430,1775818806279,294.0,8.897e-05,3]
[420228431,1775818806547,-1000.0,9.67e-05,2]
[420228432,1775818806915,-763.92,9.67e-05,2]
[420228434,1775818865110,156.0,8.897e-05,3]
[420228436,1775818925163,290.0,8.897e-05,3]
[420228437,1775818987848,276.0,8.897e-05,3]
[420228438,1775819047747,262.0,8.897e-05,3]
[420228439,1775819107172,249.0,8.897e-05,3]
[420228440,1775819167195,236.0,8.897e-05,3]
[420228441,1775819195987,-273.0,0.00010057,2]
[420228442,1775819196065,-727.0,0.00010057,2]
[420228443,1775819197116,-1000.0,0.00010057,2]
[420228444,1775819197597,-154.96,0.00010057,2]
[420228445,1775819197639,-845.04,0.00010444,2]
[420228446,1775819197780,-1000.0,0.00010444,2]
[420228447,1775819199134,-36.92,0.00010444,2]
[420228448,1775819199158,-963.08,0.00010831,2]
[420228449,1775819199252,-918.88,0.00010831,2]
[420228450,1775819199276,-81.12,0.00010876,3]
[420228451,1775819200153,-154.88,0.00010876,3]
[420228452,1775819227663,425.0,8.897e-05,3]
[420228453,1775819235261,-425.0,0.00010876,3]